[Event "Titled Tuesday Blitz July 25 Early 2023"]
[White "Kosteniuk, Alexandra"]
[Black "Michalczak, Thomas"]
[WhiteFideId "4128125"]
[BlackFideId "4622634"]
[WhiteElo "2771"]
[BlackElo "2476"]
[Result "1-0"]
[Round "4"]
[TimeControl "180+2"]
[Date "2023.07.25"]
[WhiteClock "0:01:24"]
[BlackClock "0:00:39"]
[Board "115"]

1. e4 {[%clk 0:03:00]}  e5 {[%clk 0:02:59]} 2. Nf3 {[%clk 0:03:00]}  Nc6 {[%clk 0:02:59]} 3. Bc4 {[%clk 0:03:00]}  Nf6 {[%clk 0:02:59]} 4. d4 {[%clk 0:02:58]}  exd4 {[%clk 0:02:58]} 5. e5 {[%clk 0:02:58]}  d5 {[%clk 0:02:58]} 6. Bb5 {[%clk 0:02:58]}  Nd7 {[%clk 0:02:55]} 7. O-O {[%clk 0:02:51]}  Be7 {[%clk 0:02:54]} 8. Bxc6 {[%clk 0:02:51]}  bxc6 {[%clk 0:02:54]} 9. Nxd4 {[%clk 0:02:51]}  Nb8 {[%clk 0:02:54]} 10. Qf3 {[%clk 0:02:47]}  Qd7 {[%clk 0:02:24]} 11. h3 {[%clk 0:02:43]}  c5 {[%clk 0:02:18]} 12. Ne2 {[%clk 0:02:23]}  a5 {[%clk 0:02:11]} 13. Rd1 {[%clk 0:02:22]}  Bb7 {[%clk 0:02:09]} 14. Nbc3 {[%clk 0:02:10]}  c6 {[%clk 0:02:07]} 15. Ng3 {[%clk 0:02:09]}  O-O {[%clk 0:01:51]} 16. Nf5 {[%clk 0:02:08]}  Qe6 {[%clk 0:01:15]} 17. Qg4 {[%clk 0:02:07]}  g6 {[%clk 0:01:10]} 18. Nxe7+ {[%clk 0:02:07]}  Qxe7 {[%clk 0:01:10]} 19. Re1 {[%clk 0:02:07]}  f5 {[%clk 0:01:03]} 20. Qg3 {[%clk 0:01:59]}  d4 {[%clk 0:00:56]} 21. Na4 {[%clk 0:01:56]}  Nd7 {[%clk 0:00:54]} 22. e6 {[%clk 0:01:56]}  Nf6 {[%clk 0:00:53]} 23. Bg5 {[%clk 0:01:52]}  Rae8 {[%clk 0:00:50]} 24. Qe5 {[%clk 0:01:50]}  Kg7 {[%clk 0:00:48]} 25. Nxc5 {[%clk 0:01:47]}  h6 {[%clk 0:00:40]} 26. Bxf6+ {[%clk 0:01:39]}  Rxf6 {[%clk 0:00:40]} 27. Qxd4 {[%clk 0:01:39]}  Bc8 {[%clk 0:00:39]} 28. Nd7 {[%clk 0:01:24]} 1-0


[Site "https://www.chess.com"]

[Event "Titled Tuesday Blitz July 25 Early 2023"]
[White "Volovich, Vasily"]
[Black "Itkis, Boris"]
[WhiteFideId "34169676"]
[BlackFideId "1209167"]
[WhiteElo "2723"]
[BlackElo "2450"]
[Result "0-1"]
[Round "4"]
[TimeControl "180+2"]
[Date "2023.07.25"]
[WhiteClock "0:00:34"]
[BlackClock "0:01:42"]
[Board "118"]

1. e4 {[%clk 0:03:00]}  e6 {[%clk 0:02:58]} 2. d4 {[%clk 0:03:00]}  d5 {[%clk 0:02:59]} 3. Bd3 {[%clk 0:03:00]}  c5 {[%clk 0:02:59]} 4. exd5 {[%clk 0:03:00]}  exd5 {[%clk 0:02:58]} 5. Nf3 {[%clk 0:03:00]}  Nf6 {[%clk 0:02:58]} 6. O-O {[%clk 0:03:00]}  c4 {[%clk 0:02:59]} 7. Re1+ {[%clk 0:03:00]}  Be7 {[%clk 0:02:59]} 8. Bf1 {[%clk 0:03:01]}  O-O {[%clk 0:03:00]} 9. b3 {[%clk 0:03:01]}  cxb3 {[%clk 0:03:00]} 10. axb3 {[%clk 0:03:02]}  Nc6 {[%clk 0:03:01]} 11. c3 {[%clk 0:03:00]}  Bf5 {[%clk 0:03:00]} 12. Nbd2 {[%clk 0:02:52]}  h6 {[%clk 0:02:56]} 13. b4 {[%clk 0:02:51]}  a6 {[%clk 0:02:53]} 14. Nb3 {[%clk 0:02:48]}  Bd6 {[%clk 0:02:46]} 15. Nc5 {[%clk 0:02:48]}  Qc7 {[%clk 0:02:45]} 16. h3 {[%clk 0:02:44]}  Ne4 {[%clk 0:02:43]} 17. Nxe4 {[%clk 0:02:33]}  Bxe4 {[%clk 0:02:41]} 18. Be3 {[%clk 0:02:24]}  f5 {[%clk 0:02:35]} 19. Qb3 {[%clk 0:02:06]}  Kh8 {[%clk 0:02:28]} 20. Bc1 {[%clk 0:01:51]}  Bxf3 {[%clk 0:02:24]} 21. gxf3 {[%clk 0:01:51]}  Qf7 {[%clk 0:02:25]} 22. Bg2 {[%clk 0:01:47]}  f4 {[%clk 0:02:18]} 23. Bd2 {[%clk 0:01:41]}  Ne7 {[%clk 0:02:17]} 24. Ra5 {[%clk 0:01:32]}  Rae8 {[%clk 0:02:12]} 25. b5 {[%clk 0:01:27]}  Bc7 {[%clk 0:02:11]} 26. Raa1 {[%clk 0:01:25]}  Nf5 {[%clk 0:01:52]} 27. bxa6 {[%clk 0:01:18]}  bxa6 {[%clk 0:01:50]} 28. Rxa6 {[%clk 0:00:49]}  Rxe1+ {[%clk 0:01:49]} 29. Bxe1 {[%clk 0:00:49]}  Re8 {[%clk 0:01:50]} 30. Bd2 {[%clk 0:00:44]}  Nh4 {[%clk 0:01:50]} 31. Qb7 {[%clk 0:00:40]}  Qf5 {[%clk 0:01:43]} 32. Qxc7 {[%clk 0:00:34]}  Qg5 {[%clk 0:01:42]} 0-1


[Site "https://www.chess.com"]

[Event "Titled Tuesday Blitz July 25 Early 2023"]
[White "Mohammad Fahad, Rahman"]
[Black "Valgmae, Toomas"]
[WhiteFideId "10207791"]
[BlackFideId "4502523"]
[WhiteElo "2672"]
[BlackElo "2429"]
[Result "1-0"]
[Round "4"]
[TimeControl "180+2"]
[Date "2023.07.25"]
[WhiteClock "0:00:17"]
[BlackClock "0:00:07"]
[Board "120"]

1. b3 {[%clk 0:02:54]}  e5 {[%clk 0:02:59]} 2. Bb2 {[%clk 0:02:54]}  Nc6 {[%clk 0:02:59]} 3. e3 {[%clk 0:02:54]}  a6 {[%clk 0:02:59]} 4. d4 {[%clk 0:02:53]}  exd4 {[%clk 0:02:59]} 5. exd4 {[%clk 0:02:52]}  d5 {[%clk 0:02:58]} 6. c4 {[%clk 0:02:51]}  Nf6 {[%clk 0:02:57]} 7. Nc3 {[%clk 0:02:48]}  Be7 {[%clk 0:02:50]} 8. Nf3 {[%clk 0:02:44]}  O-O {[%clk 0:02:49]} 9. cxd5 {[%clk 0:02:44]}  Nxd5 {[%clk 0:02:48]} 10. Bc4 {[%clk 0:02:43]}  Be6 {[%clk 0:02:44]} 11. O-O {[%clk 0:02:40]}  Ncb4 {[%clk 0:02:37]} 12. Ne4 {[%clk 0:02:32]}  Nf4 {[%clk 0:02:29]} 13. Qd2 {[%clk 0:02:28]}  Nbd5 {[%clk 0:02:29]} 14. Nc5 {[%clk 0:02:16]}  Bc8 {[%clk 0:02:24]} 15. Rfe1 {[%clk 0:02:12]}  b6 {[%clk 0:02:18]} 16. Nd3 {[%clk 0:01:59]}  Nxd3 {[%clk 0:02:14]} 17. Qxd3 {[%clk 0:01:57]}  Be6 {[%clk 0:02:04]} 18. Ne5 {[%clk 0:01:49]}  b5 {[%clk 0:01:58]} 19. Bxd5 {[%clk 0:01:24]}  Qxd5 {[%clk 0:01:58]} 20. Rac1 {[%clk 0:01:24]}  Rfc8 {[%clk 0:01:47]} 21. Nc6 {[%clk 0:01:16]}  Bf6 {[%clk 0:01:46]} 22. Qg3 {[%clk 0:01:14]}  a5 {[%clk 0:01:36]} 23. Rc5 {[%clk 0:00:58]}  Qd6 {[%clk 0:01:36]} 24. Ne5 {[%clk 0:00:52]}  b4 {[%clk 0:01:24]} 25. h4 {[%clk 0:00:47]}  a4 {[%clk 0:01:22]} 26. Rec1 {[%clk 0:00:31]}  axb3 {[%clk 0:01:16]} 27. axb3 {[%clk 0:00:32]}  h6 {[%clk 0:01:10]} 28. f4 {[%clk 0:00:20]}  Ra2 {[%clk 0:01:06]} 29. R1c2 {[%clk 0:00:20]}  Rca8 {[%clk 0:00:33]} 30. Kh2 {[%clk 0:00:20]}  R8a7 {[%clk 0:00:28]} 31. d5 {[%clk 0:00:17]}  Bxd5 {[%clk 0:00:25]} 32. Nc4 {[%clk 0:00:18]}  Bxc4 {[%clk 0:00:21]} 33. Bxf6 {[%clk 0:00:17]}  Qxf6 {[%clk 0:00:20]} 34. R2xc4 {[%clk 0:00:15]}  Qd6 {[%clk 0:00:13]} 35. Rc6 {[%clk 0:00:14]}  Qd7 {[%clk 0:00:12]} 36. f5 {[%clk 0:00:15]}  Qxf5 {[%clk 0:00:11]} 37. Rg4 {[%clk 0:00:15]}  g6 {[%clk 0:00:08]} 38. Rd4 {[%clk 0:00:15]}  Ra1 {[%clk 0:00:07]} 39. Rd8+ {[%clk 0:00:16]}  Kg7 {[%clk 0:00:07]} 40. Qe3 {[%clk 0:00:14]}  Qf6 {[%clk 0:00:06]} 41. Rxf6 {[%clk 0:00:14]}  Kxf6 {[%clk 0:00:07]} 42. Qd4+ {[%clk 0:00:14]}  Ke7 {[%clk 0:00:07]} 43. Rd7+ {[%clk 0:00:15]}  Ke8 {[%clk 0:00:07]} 44. Rd8+ {[%clk 0:00:15]}  Ke7 {[%clk 0:00:08]} 45. Qd7+ {[%clk 0:00:15]}  Kf6 {[%clk 0:00:08]} 46. Rf8 {[%clk 0:00:16]}  c5 {[%clk 0:00:07]} 47. Rxf7+ {[%clk 0:00:16]}  Ke5 {[%clk 0:00:07]} 48. Re7+ {[%clk 0:00:16]}  Kf4 {[%clk 0:00:07]} 49. g3+ {[%clk 0:00:16]}  Kf3 {[%clk 0:00:07]} 50. Qd3+ {[%clk 0:00:16]}  Kf2 {[%clk 0:00:07]} 51. Re2+ {[%clk 0:00:16]}  Kf1 {[%clk 0:00:07]} 52. Qf3# {[%clk 0:00:17]} 1-0


[Site "https://www.chess.com"]

[Event "Titled Tuesday Blitz July 25 Early 2023"]
[White "Sagita, Catur Adi"]
[Black "Cheer_Down"]
[WhiteFideId "7104618"]
[WhiteElo "2646"]
[BlackElo "2428"]
[Result "0-1"]
[Round "4"]
[TimeControl "180+2"]
[Date "2023.07.25"]
[WhiteClock "0:00:20"]
[BlackClock "0:00:10"]
[Board "122"]

1. e4 {[%clk 0:02:54]}  c5 {[%clk 0:02:57]} 2. Nf3 {[%clk 0:02:54]}  d6 {[%clk 0:02:57]} 3. d4 {[%clk 0:02:54]}  cxd4 {[%clk 0:02:57]} 4. Nxd4 {[%clk 0:02:55]}  Nf6 {[%clk 0:02:57]} 5. Nc3 {[%clk 0:02:55]}  a6 {[%clk 0:02:58]} 6. Bg5 {[%clk 0:02:55]}  e6 {[%clk 0:02:57]} 7. f4 {[%clk 0:02:55]}  h6 {[%clk 0:02:55]} 8. Bxf6 {[%clk 0:02:54]}  Qxf6 {[%clk 0:02:55]} 9. Qd2 {[%clk 0:02:53]}  Nc6 {[%clk 0:02:53]} 10. Nxc6 {[%clk 0:02:52]}  bxc6 {[%clk 0:02:52]} 11. O-O-O {[%clk 0:02:53]}  Qd8 {[%clk 0:02:51]} 12. Bc4 {[%clk 0:02:46]}  d5 {[%clk 0:02:49]} 13. exd5 {[%clk 0:02:45]}  cxd5 {[%clk 0:02:49]} 14. Nxd5 {[%clk 0:02:45]}  Bc5 {[%clk 0:02:24]} 15. Qc3 {[%clk 0:02:30]}  O-O {[%clk 0:02:22]} 16. Ne3 {[%clk 0:02:26]}  Qb6 {[%clk 0:02:15]} 17. Ng4 {[%clk 0:02:24]}  Bb7 {[%clk 0:02:06]} 18. Kb1 {[%clk 0:02:19]}  Bxg2 {[%clk 0:02:03]} 19. Rhg1 {[%clk 0:02:18]}  Bxg1 {[%clk 0:02:02]} 20. Qg3 {[%clk 0:02:16]}  Kh8 {[%clk 0:01:32]} 21. Qxg2 {[%clk 0:02:11]}  Bc5 {[%clk 0:01:28]} 22. Bd3 {[%clk 0:02:06]}  Bd4 {[%clk 0:01:21]} 23. b3 {[%clk 0:02:04]}  f5 {[%clk 0:01:18]} 24. Ne5 {[%clk 0:01:56]}  Bxe5 {[%clk 0:01:18]} 25. fxe5 {[%clk 0:01:57]}  Rad8 {[%clk 0:01:15]} 26. Rg1 {[%clk 0:01:56]}  Rf7 {[%clk 0:01:15]} 27. Qg6 {[%clk 0:01:56]}  Rfd7 {[%clk 0:01:12]} 28. Rf1 {[%clk 0:01:42]}  a5 {[%clk 0:01:09]} 29. Rxf5 {[%clk 0:01:40]}  Rxd3 {[%clk 0:00:53]} 30. cxd3 {[%clk 0:01:40]}  Qe3 {[%clk 0:00:52]} 31. Rf1 {[%clk 0:01:28]}  Qxe5 {[%clk 0:00:51]} 32. Qe4 {[%clk 0:01:18]}  Qxe4 {[%clk 0:00:48]} 33. dxe4 {[%clk 0:01:19]}  Rd2 {[%clk 0:00:48]} 34. a3 {[%clk 0:00:48]}  Rxh2 {[%clk 0:00:40]} 35. b4 {[%clk 0:00:48]}  axb4 {[%clk 0:00:36]} 36. axb4 {[%clk 0:00:49]}  Re2 {[%clk 0:00:35]} 37. Rf4 {[%clk 0:00:42]}  e5 {[%clk 0:00:34]} 38. Rh4 {[%clk 0:00:40]}  Kh7 {[%clk 0:00:26]} 39. b5 {[%clk 0:00:40]}  Rd2 {[%clk 0:00:26]} 40. Rh3 {[%clk 0:00:34]}  Rd6 {[%clk 0:00:24]} 41. Kc2 {[%clk 0:00:29]}  g5 {[%clk 0:00:22]} 42. Kc3 {[%clk 0:00:26]}  g4 {[%clk 0:00:19]} 43. Rd3 {[%clk 0:00:25]}  Rb6 {[%clk 0:00:18]} 44. Kc4 {[%clk 0:00:25]}  h5 {[%clk 0:00:17]} 45. Kc5 {[%clk 0:00:25]}  Rb8 {[%clk 0:00:17]} 46. Rb3 {[%clk 0:00:21]}  Kg6 {[%clk 0:00:16]} 47. Kd5 {[%clk 0:00:21]}  Kf6 {[%clk 0:00:14]} 48. Rb1 {[%clk 0:00:20]}  g3 {[%clk 0:00:14]} 49. Rf1+ {[%clk 0:00:20]}  Kg5 {[%clk 0:00:14]} 50. Rb1 {[%clk 0:00:20]}  h4 {[%clk 0:00:13]} 51. Kxe5 {[%clk 0:00:20]}  Kg4 {[%clk 0:00:13]} 52. Kd6 {[%clk 0:00:19]}  g2 {[%clk 0:00:13]} 53. Kc7 {[%clk 0:00:20]}  Rg8 {[%clk 0:00:12]} 54. b6 {[%clk 0:00:19]}  h3 {[%clk 0:00:12]} 55. e5 {[%clk 0:00:18]}  h2 {[%clk 0:00:12]} 56. e6 {[%clk 0:00:19]}  g1=Q {[%clk 0:00:12]} 57. Rb4+ {[%clk 0:00:17]}  Kf5 {[%clk 0:00:11]} 58. Rc4 {[%clk 0:00:18]}  Qf1 {[%clk 0:00:11]} 59. Rc6 {[%clk 0:00:17]}  h1=Q {[%clk 0:00:10]} 60. b7 {[%clk 0:00:17]}  Qxc6+ {[%clk 0:00:10]} 61. Kxc6 {[%clk 0:00:18]}  Kxe6 {[%clk 0:00:10]} 62. Kc7 {[%clk 0:00:19]}  Qc4+ {[%clk 0:00:10]} 63. Kb6 {[%clk 0:00:19]}  Qb4+ {[%clk 0:00:10]} 64. Kc7 {[%clk 0:00:20]}  Qc5# {[%clk 0:00:10]} 0-1


[Site "https://www.chess.com"]

[Event "Titled Tuesday Blitz July 25 Early 2023"]
[White "Goryachkina, Aleksandra"]
[Black "ZugZwang1201"]
[WhiteFideId "4147103"]
[WhiteElo "2641"]
[BlackElo "2422"]
[Result "0-1"]
[Round "4"]
[TimeControl "180+2"]
[Date "2023.07.25"]
[WhiteClock "0:00:03"]
[BlackClock "0:01:00"]
[Board "123"]

1. e4 {[%clk 0:03:00]}  c5 {[%clk 0:03:00]} 2. Nf3 {[%clk 0:03:00]}  e6 {[%clk 0:03:00]} 3. d4 {[%clk 0:02:59]}  cxd4 {[%clk 0:03:01]} 4. Nxd4 {[%clk 0:02:59]}  a6 {[%clk 0:03:02]} 5. Bd3 {[%clk 0:02:53]}  Qc7 {[%clk 0:03:02]} 6. O-O {[%clk 0:02:48]}  Nf6 {[%clk 0:03:03]} 7. c4 {[%clk 0:02:44]}  Be7 {[%clk 0:03:03]} 8. Nc3 {[%clk 0:02:43]}  d6 {[%clk 0:03:00]} 9. Be3 {[%clk 0:02:42]}  Nbd7 {[%clk 0:03:00]} 10. Rc1 {[%clk 0:02:40]}  h5 {[%clk 0:02:57]} 11. f3 {[%clk 0:02:38]}  h4 {[%clk 0:02:56]} 12. h3 {[%clk 0:02:01]}  Nh5 {[%clk 0:02:56]} 13. Nde2 {[%clk 0:01:56]}  g5 {[%clk 0:02:56]} 14. Qd2 {[%clk 0:01:48]}  Rg8 {[%clk 0:02:55]} 15. b4 {[%clk 0:01:40]}  Ne5 {[%clk 0:02:53]} 16. Na4 {[%clk 0:01:39]}  Bd7 {[%clk 0:02:52]} 17. Nb6 {[%clk 0:01:37]}  Rd8 {[%clk 0:02:53]} 18. a4 {[%clk 0:01:23]}  Kf8 {[%clk 0:02:22]} 19. a5 {[%clk 0:01:23]}  Be8 {[%clk 0:02:22]} 20. Bb1 {[%clk 0:01:12]}  Rg6 {[%clk 0:02:15]} 21. Qb2 {[%clk 0:01:06]}  Kg7 {[%clk 0:02:05]} 22. Bd4 {[%clk 0:01:05]}  Bf6 {[%clk 0:02:05]} 23. Rfd1 {[%clk 0:00:57]}  Kh6 {[%clk 0:02:00]} 24. Qd2 {[%clk 0:00:37]}  Bd7 {[%clk 0:01:52]} 25. Qe3 {[%clk 0:00:33]}  Rdg8 {[%clk 0:01:51]} 26. c5 {[%clk 0:00:31]}  Bb5 {[%clk 0:01:45]} 27. cxd6 {[%clk 0:00:23]}  Qxd6 {[%clk 0:01:46]} 28. Bxe5 {[%clk 0:00:14]}  Qxe5 {[%clk 0:01:47]} 29. Rc5 {[%clk 0:00:14]}  Qb2 {[%clk 0:01:43]} 30. Nc4 {[%clk 0:00:10]}  Qxb4 {[%clk 0:01:39]} 31. e5 {[%clk 0:00:09]}  Be7 {[%clk 0:01:38]} 32. Rxb5 {[%clk 0:00:07]}  axb5 {[%clk 0:01:33]} 33. Nd6 {[%clk 0:00:07]}  f5 {[%clk 0:01:27]} 34. Nxb7 {[%clk 0:00:04]}  Nf4 {[%clk 0:01:18]} 35. Kh1 {[%clk 0:00:04]}  Qb2 {[%clk 0:01:01]} 36. Nd4 {[%clk 0:00:03]}  Qxg2# {[%clk 0:01:00]} 0-1


[Site "https://www.chess.com"]

[Event "Titled Tuesday Blitz July 25 Early 2023"]
[White "Arabidze, Meri"]
[Black "Mejia, Cherry Ann"]
[WhiteFideId "13604040"]
[BlackFideId "5206880"]
[WhiteElo "2608"]
[BlackElo "2390"]
[Result "1-0"]
[Round "4"]
[TimeControl "180+2"]
[Date "2023.07.25"]
[WhiteClock "0:00:51"]
[BlackClock "0:00:25"]
[Board "125"]

1. d4 {[%clk 0:03:00]}  d5 {[%clk 0:02:59]} 2. Nf3 {[%clk 0:03:01]}  Nf6 {[%clk 0:02:56]} 3. c4 {[%clk 0:03:01]}  dxc4 {[%clk 0:02:56]} 4. e3 {[%clk 0:03:00]}  a6 {[%clk 0:02:56]} 5. Bxc4 {[%clk 0:02:59]}  e6 {[%clk 0:02:56]} 6. O-O {[%clk 0:02:58]}  c5 {[%clk 0:02:56]} 7. b3 {[%clk 0:02:56]}  b5 {[%clk 0:02:56]} 8. Be2 {[%clk 0:02:56]}  Bb7 {[%clk 0:02:57]} 9. a4 {[%clk 0:02:56]}  b4 {[%clk 0:02:57]} 10. Nbd2 {[%clk 0:02:57]}  Nbd7 {[%clk 0:02:55]} 11. Nc4 {[%clk 0:02:57]}  cxd4 {[%clk 0:02:51]} 12. Nxd4 {[%clk 0:02:55]}  Rc8 {[%clk 0:02:43]} 13. Bb2 {[%clk 0:02:54]}  Be7 {[%clk 0:02:42]} 14. a5 {[%clk 0:02:49]}  O-O {[%clk 0:02:37]} 15. f3 {[%clk 0:02:37]}  Nd5 {[%clk 0:02:32]} 16. Qd2 {[%clk 0:02:18]}  Nc5 {[%clk 0:02:15]} 17. Bd1 {[%clk 0:02:18]}  Bf6 {[%clk 0:02:00]} 18. Bc2 {[%clk 0:02:16]}  Qc7 {[%clk 0:01:48]} 19. Rfe1 {[%clk 0:01:09]}  Rfd8 {[%clk 0:01:47]} 20. Qf2 {[%clk 0:01:09]}  e5 {[%clk 0:01:16]} 21. Nf5 {[%clk 0:01:03]}  g6 {[%clk 0:01:13]} 22. Nh6+ {[%clk 0:01:03]}  Kg7 {[%clk 0:01:13]} 23. Ng4 {[%clk 0:01:04]}  Nc3 {[%clk 0:01:02]} 24. Nxf6 {[%clk 0:01:04]}  Kxf6 {[%clk 0:01:02]} 25. Nb6 {[%clk 0:01:02]}  Rb8 {[%clk 0:00:55]} 26. Qh4+ {[%clk 0:00:54]}  Kg7 {[%clk 0:00:55]} 27. Qxb4 {[%clk 0:00:55]}  Nd5 {[%clk 0:00:36]} 28. Qh4 {[%clk 0:00:54]}  Nb4 {[%clk 0:00:25]} 29. Qxb4 {[%clk 0:00:51]} 1-0


[Site "https://www.chess.com"]

[Event "Titled Tuesday Blitz July 25 Early 2023"]
[White "Slavin, Alexey"]
[Black "Sadykov, Ramil"]
[WhiteFideId "24104388"]
[BlackFideId "24113590"]
[WhiteElo "2362"]
[BlackElo "2582"]
[Result "1/2-1/2"]
[Round "4"]
[TimeControl "180+2"]
[Date "2023.07.25"]
[WhiteClock "0:00:58"]
[BlackClock "0:00:05"]
[Board "127"]

1. e4 {[%clk 0:02:58]}  c5 {[%clk 0:03:00]} 2. g3 {[%clk 0:02:57]}  Nc6 {[%clk 0:02:55]} 3. Bg2 {[%clk 0:02:57]}  g6 {[%clk 0:02:54]} 4. Ne2 {[%clk 0:02:57]}  Bg7 {[%clk 0:02:54]} 5. O-O {[%clk 0:02:57]}  e6 {[%clk 0:02:52]} 6. Nbc3 {[%clk 0:02:57]}  Nge7 {[%clk 0:02:52]} 7. a3 {[%clk 0:02:57]}  O-O {[%clk 0:02:52]} 8. Rb1 {[%clk 0:02:57]}  d5 {[%clk 0:02:46]} 9. exd5 {[%clk 0:02:57]}  exd5 {[%clk 0:02:44]} 10. b4 {[%clk 0:02:56]}  d4 {[%clk 0:02:32]} 11. Ne4 {[%clk 0:02:56]}  c4 {[%clk 0:02:32]} 12. d3 {[%clk 0:02:55]}  c3 {[%clk 0:02:25]} 13. Bf4 {[%clk 0:02:53]}  Nd5 {[%clk 0:02:12]} 14. Bg5 {[%clk 0:02:45]}  f6 {[%clk 0:02:10]} 15. Bc1 {[%clk 0:02:44]}  f5 {[%clk 0:02:02]} 16. Ng5 {[%clk 0:02:40]}  h6 {[%clk 0:01:50]} 17. Nf3 {[%clk 0:02:39]}  b5 {[%clk 0:01:38]} 18. a4 {[%clk 0:02:35]}  a6 {[%clk 0:01:37]} 19. axb5 {[%clk 0:02:27]}  axb5 {[%clk 0:01:38]} 20. Nf4 {[%clk 0:02:20]}  Nxf4 {[%clk 0:01:32]} 21. Bxf4 {[%clk 0:02:19]}  Bb7 {[%clk 0:01:21]} 22. Re1 {[%clk 0:02:17]}  g5 {[%clk 0:01:15]} 23. Be5 {[%clk 0:02:01]}  Nxe5 {[%clk 0:01:13]} 24. Nxe5 {[%clk 0:02:01]}  Bxg2 {[%clk 0:01:11]} 25. Kxg2 {[%clk 0:02:01]}  g4 {[%clk 0:00:58]} 26. f4 {[%clk 0:01:47]}  Qd5+ {[%clk 0:00:55]} 27. Kg1 {[%clk 0:01:44]}  Rfe8 {[%clk 0:00:54]} 28. Ra1 {[%clk 0:01:35]}  Ra4 {[%clk 0:00:40]} 29. Rxa4 {[%clk 0:01:30]}  bxa4 {[%clk 0:00:41]} 30. Qa1 {[%clk 0:01:30]}  Ra8 {[%clk 0:00:37]} 31. Qa3 {[%clk 0:01:25]}  Bf8 {[%clk 0:00:33]} 32. Nc4 {[%clk 0:01:22]}  Qb5 {[%clk 0:00:30]} 33. Qa2 {[%clk 0:01:20]}  Kg7 {[%clk 0:00:13]} 34. Re5 {[%clk 0:01:11]}  Qxb4 {[%clk 0:00:12]} 35. Rxf5 {[%clk 0:01:11]}  Ra7 {[%clk 0:00:10]} 36. Ne5 {[%clk 0:01:04]}  Qb2 {[%clk 0:00:04]} 37. Rf7+ {[%clk 0:01:03]}  Kg8 {[%clk 0:00:04]} 38. Qe6 {[%clk 0:00:59]}  Qc1+ {[%clk 0:00:03]} 39. Kf2 {[%clk 0:00:58]}  Qxc2+ {[%clk 0:00:04]} 40. Kg1 {[%clk 0:00:58]}  Qd1+ {[%clk 0:00:04]} 41. Kf2 {[%clk 0:00:57]}  Qd2+ {[%clk 0:00:05]} 42. Kg1 {[%clk 0:00:58]}  Qd1+ {[%clk 0:00:05]} 43. Kf2 {[%clk 0:00:58]}  Qd2+ {[%clk 0:00:05]} 44. Kg1 {[%clk 0:00:58]}  Qd1+ {[%clk 0:00:05]} 1/2-1/2


[Site "https://www.chess.com"]

[Event "Titled Tuesday Blitz July 25 Early 2023"]
[White "Szente Varga, Fruzsina"]
[Black "Eynullayev, Altay"]
[WhiteFideId "712264"]
[BlackFideId "13413562"]
[WhiteElo "2315"]
[BlackElo "2557"]
[Result "1-0"]
[Round "4"]
[TimeControl "180+2"]
[Date "2023.07.25"]
[WhiteClock "0:00:09"]
[BlackClock "0:00:06"]
[Board "131"]

1. e4 {[%clk 0:03:00]}  c5 {[%clk 0:02:58]} 2. Nf3 {[%clk 0:03:00]}  d6 {[%clk 0:02:59]} 3. d4 {[%clk 0:03:01]}  cxd4 {[%clk 0:02:59]} 4. Qxd4 {[%clk 0:03:02]}  Nc6 {[%clk 0:02:58]} 5. Bb5 {[%clk 0:03:02]}  a6 {[%clk 0:02:59]} 6. Bxc6+ {[%clk 0:03:02]}  bxc6 {[%clk 0:03:00]} 7. c4 {[%clk 0:03:03]}  e5 {[%clk 0:03:00]} 8. Qd3 {[%clk 0:03:03]}  Be7 {[%clk 0:03:00]} 9. Nc3 {[%clk 0:03:03]}  Be6 {[%clk 0:03:00]} 10. b3 {[%clk 0:03:02]}  Qc7 {[%clk 0:03:00]} 11. Ba3 {[%clk 0:03:01]}  Nf6 {[%clk 0:02:53]} 12. O-O {[%clk 0:02:56]}  O-O {[%clk 0:02:52]} 13. Rad1 {[%clk 0:02:52]}  Rae8 {[%clk 0:02:51]} 14. Bxd6 {[%clk 0:02:42]}  Bxd6 {[%clk 0:02:28]} 15. Qxd6 {[%clk 0:02:43]}  Qa5 {[%clk 0:02:02]} 16. Qd2 {[%clk 0:02:00]}  Qc7 {[%clk 0:01:46]} 17. h3 {[%clk 0:01:44]}  Rd8 {[%clk 0:01:44]} 18. Qe3 {[%clk 0:01:44]}  Qa5 {[%clk 0:01:27]} 19. Na4 {[%clk 0:01:43]}  Nd7 {[%clk 0:01:26]} 20. Qc3 {[%clk 0:01:32]}  Qxc3 {[%clk 0:01:22]} 21. Nxc3 {[%clk 0:01:33]}  f6 {[%clk 0:01:20]} 22. Rd6 {[%clk 0:01:32]}  Nc5 {[%clk 0:01:14]} 23. Rxc6 {[%clk 0:01:29]}  Rc8 {[%clk 0:01:15]} 24. Rxc8 {[%clk 0:01:26]}  Rxc8 {[%clk 0:01:16]} 25. Rd1 {[%clk 0:01:26]}  Kf7 {[%clk 0:01:14]} 26. Kf1 {[%clk 0:01:19]}  g5 {[%clk 0:01:08]} 27. Ke2 {[%clk 0:01:08]}  h5 {[%clk 0:01:08]} 28. Ke3 {[%clk 0:01:07]}  g4 {[%clk 0:01:07]} 29. hxg4 {[%clk 0:01:06]}  hxg4 {[%clk 0:01:08]} 30. Nh4 {[%clk 0:01:05]}  g3 {[%clk 0:00:56]} 31. f4 {[%clk 0:00:31]}  exf4+ {[%clk 0:00:54]} 32. Kxf4 {[%clk 0:00:31]}  Rg8 {[%clk 0:00:36]} 33. Nf5 {[%clk 0:00:30]}  Rg5 {[%clk 0:00:35]} 34. Nxg3 {[%clk 0:00:25]}  Rg4+ {[%clk 0:00:35]} 35. Kf3 {[%clk 0:00:25]}  Rg5 {[%clk 0:00:27]} 36. Kf2 {[%clk 0:00:25]}  a5 {[%clk 0:00:20]} 37. Rd6 {[%clk 0:00:23]}  Nd7 {[%clk 0:00:18]} 38. Ra6 {[%clk 0:00:23]}  Ne5 {[%clk 0:00:18]} 39. Nd5 {[%clk 0:00:18]}  Nd3+ {[%clk 0:00:18]} 40. Kf3 {[%clk 0:00:17]}  Ne5+ {[%clk 0:00:15]} 41. Kf4 {[%clk 0:00:12]}  Rg4+ {[%clk 0:00:14]} 42. Ke3 {[%clk 0:00:10]}  Rxg3+ {[%clk 0:00:14]} 43. Kd4 {[%clk 0:00:11]}  Rd3+ {[%clk 0:00:12]} 44. Kc5 {[%clk 0:00:10]}  Nd7+ {[%clk 0:00:09]} 45. Kd6 {[%clk 0:00:10]}  Rd2 {[%clk 0:00:05]} 46. Rxa5 {[%clk 0:00:10]}  Rxg2 {[%clk 0:00:04]} 47. Nf4 {[%clk 0:00:10]}  Rd2+ {[%clk 0:00:04]} 48. Nd5 {[%clk 0:00:10]}  Ne5 {[%clk 0:00:01]} 49. Ra7+ {[%clk 0:00:10]}  Nd7 {[%clk 0:00:02]} 50. Rxd7+ {[%clk 0:00:08]}  Bxd7 {[%clk 0:00:03]} 51. Kxd7 {[%clk 0:00:09]}  Rxa2 {[%clk 0:00:04]} 52. b4 {[%clk 0:00:09]}  Ra7+ {[%clk 0:00:04]} 53. Kd6 {[%clk 0:00:09]}  Ke8 {[%clk 0:00:05]} 54. b5 {[%clk 0:00:10]}  Rd7+ {[%clk 0:00:04]} 55. Kc5 {[%clk 0:00:10]}  Kd8 {[%clk 0:00:03]} 56. b6 {[%clk 0:00:09]}  Kc8 {[%clk 0:00:04]} 57. Nxf6 {[%clk 0:00:09]}  Rf7 {[%clk 0:00:05]} 58. Nd5 {[%clk 0:00:09]}  Rf1 {[%clk 0:00:05]} 59. e5 {[%clk 0:00:10]}  Re1 {[%clk 0:00:05]} 60. Kd6 {[%clk 0:00:10]}  Rh1 {[%clk 0:00:03]} 61. c5 {[%clk 0:00:10]}  Rh6+ {[%clk 0:00:03]} 62. e6 {[%clk 0:00:10]}  Kb7 {[%clk 0:00:04]} 63. Kd7 {[%clk 0:00:09]}  Rh5 {[%clk 0:00:03]} 64. c6+ {[%clk 0:00:06]}  Ka6 {[%clk 0:00:03]} 65. Kd6 {[%clk 0:00:06]}  Rh6 {[%clk 0:00:01]} 66. b7 {[%clk 0:00:06]}  Ka7 {[%clk 0:00:02]} 67. Kc7 {[%clk 0:00:06]}  Rh7+ {[%clk 0:00:01]} 68. e7 {[%clk 0:00:06]}  Rxe7+ {[%clk 0:00:02]} 69. Nxe7 {[%clk 0:00:07]}  Ka6 {[%clk 0:00:02]} 70. b8=Q {[%clk 0:00:08]}  Ka5 {[%clk 0:00:03]} 71. Qb6+ {[%clk 0:00:08]}  Ka4 {[%clk 0:00:04]} 72. Nd5 {[%clk 0:00:08]}  Ka3 {[%clk 0:00:05]} 73. Qb4+ {[%clk 0:00:08]}  Ka2 {[%clk 0:00:06]} 74. Nc3+ {[%clk 0:00:08]}  Ka1 {[%clk 0:00:06]} 75. Qb1# {[%clk 0:00:09]} 1-0


[Site "https://www.chess.com"]